bitfinex/quotes_SOLUSD_20251030
["timestamp","ask_amount","ask_price","bid_price","bid_amount"]
[1761852294925,0.68,180.76,180.73,61.7]
[1761852295725,5.53189135,180.77,180.73,61.7]
[1761852296030,5.53189135,180.77,180.73,70.58026695]
[1761852296198,5.53158535,180.78,180.73,70.58026695]
[1761852296403,5.53158535,180.78,180.71,5.53369846]
[1761852296404,20.592,180.75,180.71,61.7]
[1761852296601,0.68,180.75,180.71,70.58026695]
[1761852296811,0.68,180.77,180.71,71.26026695]
[1761852297038,0.68,180.76,180.71,70.58026695]
[1761852297446,0.68,180.76,180.71,61.7]
[1761852298044,9.56026695,180.76,180.71,61.7]
[1761852298245,5.53250345,180.75,180.71,61.7]
[1761852298742,6.21250345,180.75,180.71,70.58026695]
[1761852299347,5.53189135,180.77,180.71,70.58026695]
[1761852299654,5.53189135,180.77,180.74,8.88026695]
[1761852299854,5.73153551,180.79,180.75,8.88026695]
[1761852300439,5.73153551,180.79,180.74,62.38]
[1761852300440,0.68,180.78,180.74,70.58026695]
[1761852300749,5.73153551,180.79,180.75,8.88026695]
[1761852300938,5.73153551,180.79,180.74,62.38]
[1761852300939,6.41153551,180.79,180.74,70.58026695]
[1761852301145,0.68,180.78,180.74,61.7]
[1761852301347,9.56026695,180.78,180.74,61.7]
[1761852301727,19.55973397,180.79,180.74,61.7]
[1761852302043,0.68,180.78,180.74,61.7]
[1761852302446,5.53189135,180.77,180.74,61.7]
[1761852302868,6.21189135,180.77,180.74,61.7]
[1761852304351,9.76026695,180.79,180.74,61.7]
[1761852304545,5.73128896,180.79,180.74,71.26026695]
[1761852304745,0.68,180.78,180.74,61.7]
[1761852304945,4.52012727,180.78,180.74,61.7]
[1761852305269,8.88026695,180.75,180.7,61.7]
[1761852305436,20.592,180.76,180.7,0.68]
[1761852305633,20.592,180.76,180.71,8.88026695]
[1761852305834,0.68,180.75,180.7,8.88026695]
[1761852306250,9.56026695,180.75,180.69,8.88026695]
[1761852306453,15.09299248,180.75,180.69,15.09452771]
[1761852306755,5.53223397,180.76,180.71,8.88026695]
[1761852307067,20.592,180.78,180.73,8.88026695]
[1761852307370,3.84090565,180.77,180.72,9.56026695]
[1761852307676,5.53158535,180.78,180.73,8.88026695]
[1761852307836,5.53158535,180.78,180.74,8.88026695]
[1761852308038,6.21158535,180.78,180.74,8.88026695]
[1761852308467,6.21158535,180.78,180.73,0.68]
[1761852308468,5.53219738,180.76,180.73,8.88026695]
[1761852309061,5.53219738,180.76,180.73,9.56026695]
[1761852309462,5.53158535,180.78,180.74,0.65]
[1761852309668,5.53158535,180.78,180.74,9.53026695]
[1761852309868,0.2,180.79,180.77,8.88026695]
[1761852310054,0.2,180.79,180.78,9.53026695]
[1761852310443,0.2,180.79,180.78,15.0618523]
[1761852311157,2.89108725,180.88,180.78,38.96396651]
[1761852311351,3.83888131,180.87,180.83,8.88026695]
[1761852311555,0.68,180.89,180.83,8.88026695]
[1761852311755,3.83765736,180.89,180.84,8.88026695]
[1761852312147,3.83765736,180.88,180.84,9.53026695]
[1761852312343,5.52829647,180.89,180.82,8.88026695]
[1761852312549,6.20793897,180.9,180.85,8.88026695]
[1761852312757,5.52669393,180.94,180.88,8.88026695]
[1761852312952,3.83560691,180.93,180.88,8.88026695]
[1761852313376,4.51560691,180.93,180.88,8.88026695]
[1761852313964,5.52730488,180.92,180.88,8.88026695]
[1761852314264,5.52730488,180.92,180.82,0.65]
[1761852314265,8.88026695,180.89,180.82,0.65]
[1761852314455,8.88026695,180.88,180.82,0.65]
[1761852314770,8.88026695,180.88,180.82,9.53026695]
[1761852315070,20.592,180.89,180.83,0.65]
[1761852315258,20.592,180.89,180.73,27.66477237]
[1761852315259,8.88026695,180.84,180.75,8.88026695]
[1761852315463,8.88026695,180.81,180.75,8.88026695]
[1761852315774,8.88026695,180.8,180.74,8.88026695]
[1761852315968,5.53127938,180.79,180.73,14.41324498]
[1761852316272,5.53127938,180.79,180.74,8.88026695]
[1761852316675,5.53127938,180.79,180.74,9.60026695]
[1761852316989,5.53127938,180.79,180.7,10.50882769]
[1761852316990,9.56026695,180.78,180.7,10.50882769]
[1761852317272,9.56026695,180.78,180.72,8.88026695]
[1761852317873,5.53189135,180.77,180.72,8.88026695]
[1761852318253,5.53189135,180.77,180.72,9.60026695]
[1761852318457,5.53189135,180.77,180.73,8.88026695]
[1761852318665,5.53189135,180.77,180.73,9.60026695]
[1761852318844,5.53189135,180.77,180.72,5.53338674]
[1761852318845,14.5060539,180.82,180.74,0.72]
[1761852319045,6.20944429,180.85,180.78,8.88026695]
[1761852319276,6.20944429,180.85,180.79,8.88026695]
[1761852319584,6.20944429,180.85,180.8,8.88026695]
[1761852319897,5.52944429,180.85,180.82,8.88026695]
[1761852320051,5.52883286,180.87,180.82,8.88026695]
[1761852320360,0.68,180.87,180.82,8.88026695]
[1761852320561,0.68,180.87,180.83,8.88026695]
[1761852320759,5.5285479,180.88,180.83,8.88026695]
[1761852321072,0.68,180.87,180.82,8.88026695]
[1761852322259,5.52913856,180.86,180.82,8.88026695]
[1761852322782,5.52888723,180.87,180.82,9.60026695]
[1761852323159,21.272,180.89,180.82,8.88026695]
[1761852323476,0.68,180.88,180.8,6.2509241]
[1761852323674,0.68,180.88,180.81,0.72]
[1761852324162,5.52883286,180.87,180.81,0.72]
[1761852325063,34.41255392,180.89,180.81,0.72]
[1761852325064,20.592,180.89,180.86,5.83880421]
[1761852325266,0.68,180.91,180.87,5.83880421]
[1761852325575,4.41401509,180.93,180.87,5.83880421]
[1761852325779,3.09242363,180.95,180.89,5.83880421]
[1761852325780,3.73401509,180.92,180.89,5.83880421]
[1761852326077,5.52676619,180.94,180.89,5.83880421]
[1761852326253,3.73308939,180.93,180.87,0.72]
[1761852326682,4.41308939,180.93,180.88,5.83880421]
[1761852327279,3.73308939,180.93,180.88,5.83880421]
[1761852327583,4.41308939,180.93,180.88,5.83880421]
[1761852327880,3.73308939,180.93,180.89,5.83880421]
[1761852328284,9.26015907,180.93,180.89,5.83880421]
[1761852328458,3.73308939,180.92,180.89,5.83880421]
[1761852328788,6.20706968,180.93,180.88,5.83880421]
[1761852328991,3.73539198,180.92,180.88,5.83880421]
[1761852329291,5.83880421,180.91,180.85,20.592]
[1761852329492,3.73572115,180.9,180.86,5.83880421]
[1761852329700,5.83880421,180.92,180.85,0.72]
[1761852329907,5.83880421,180.92,180.78,9.78882769]
[1761852329908,5.83880421,180.87,180.78,9.78882769]
[1761852330051,5.83880421,180.86,180.81,5.83880421]
[1761852330257,5.52913856,180.86,180.82,5.83880421]
[1761852330663,6.20913856,180.86,180.82,5.83880421]
[1761852331371,5.52913856,180.86,180.82,5.83880421]
[1761852331884,5.52913856,180.86,180.8,15.3197776]
[1761852331885,6.20913856,180.86,180.81,5.83880421]
[1761852332081,5.83880421,180.84,180.77,6.89098999]
[1761852332311,5.53066755,180.81,180.77,6.89098999]
[1761852332604,5.53066755,180.81,180.77,12.7297942]
[1761852332763,0.68,180.8,180.77,6.89098999]
[1761852332970,6.51880421,180.8,180.77,6.89098999]
[1761852333186,6.51880421,180.79,180.77,6.89098999]
[1761852333710,0.68,180.78,180.77,6.89098999]
[1761852334267,5.53158535,180.78,180.77,6.89098999]
[1761852334470,5.53097345,180.8,180.77,6.89098999]
[1761852334674,5.83880421,180.78,180.77,6.89098999]
[1761852334905,24.31833422,180.78,180.77,6.89098999]
[1761852335104,30.83713843,180.78,180.77,6.89098999]
[1761852336479,36.36872378,180.78,180.77,6.89098999]
[1761852338787,36.36810318,180.78,180.77,6.89098999]
[1761852339105,36.36810318,180.78,180.68,61.7]
[1761852339106,9.78882769,180.77,180.68,61.7]
[1761852339287,10.47882769,180.77,180.67,5.83880421]
[1761852339478,10.47882769,180.77,180.65,5.83880421]
[1761852339479,5.83880421,180.71,180.65,5.83880421]
[1761852339801,5.83880421,180.66,180.6,5.93880421]
[1761852340004,5.83880421,180.65,180.6,0.1]
[1761852340389,5.53587245,180.64,180.6,0.82]
[1761852340611,5.53587245,180.64,180.6,0.1]
[1761852340612,5.83880421,180.63,180.6,0.1]
[1761852340796,0.69,180.63,180.6,0.1]
[1761852341305,6.52880421,180.63,180.6,0.1]
[1761852341610,5.83880421,180.62,180.6,0.1]
[1761852341792,5.83880421,180.61,180.6,0.1]
[1761852342108,6.52880421,180.61,180.6,0.1]
[1761852342313,27.12080421,180.61,180.6,0.1]
[1761852342515,32.65759619,180.61,180.6,0.1]
[1761852343288,42.44642388,180.61,180.6,1e-08]
[1761852344098,46.15774905,180.61,180.6,1e-08]
[1761852344302,42.44642388,180.61,180.6,1e-08]
[1761852346330,36.60761967,180.61,180.6,1e-08]
[1761852346607,42.44642388,180.61,180.6,1e-08]
[1761852349388,35.91761967,180.61,180.6,1e-08]
[1761852349588,6.22679198,180.61,180.6,1e-08]
[1761852349793,32.65759619,180.61,180.6,1e-08]
[1761852351115,26.12879198,180.61,180.6,1e-08]
[1761852351318,31.96759619,180.61,180.6,1e-08]
[1761852351816,5.53679198,180.61,180.6,1e-08]
[1761852352991,32.65759619,180.61,180.6,1e-08]
[1761852357301,31.96759619,180.61,180.6,1e-08]
[1761852358110,26.12879198,180.61,180.6,1e-08]
[1761852358305,5.53679198,180.61,180.6,1e-08]
[1761852358618,5.53617892,180.63,180.6,0.72000001]
[1761852359305,5.53617892,180.63,180.6,1e-08]
[1761852359711,5.53617892,180.63,180.6,0.72000001]
[1761852360103,5.53617892,180.63,180.6,1e-08]
[1761852360302,5.83880421,180.61,180.6,1e-08]
[1761852360504,25.21543045,180.63,180.6,0.72000001]
[1761852360817,25.21543045,180.63,180.6,1e-08]
[1761852361524,0.69,180.65,180.6,6.55880422]
[1761852361525,5.53591459,180.64,180.6,6.55880422]
[1761852361726,20.592,180.66,180.61,5.83880421]
[1761852362024,5.53487259,180.68,180.62,6.55880421]
[1761852362240,5.53474539,180.68,180.64,5.83880421]
[1761852362529,13.83210279,180.74,180.67,5.83880421]
[1761852362730,5.53250345,180.75,180.65,0.72]
[1761852362731,11.37130766,180.75,180.69,5.83880421]
[1761852362900,25.2025663,180.75,180.69,6.55880421]
[1761852363103,5.53250345,180.75,180.7,6.55880421]
[1761852363408,5.53250345,180.75,180.71,5.83880421]
[1761852363604,2.89311327,180.77,180.73,5.83880421]
[1761852363809,13.82966877,180.78,180.69,19.37016537]
[1761852363810,19.66847298,180.78,180.72,6.55880421]
[1761852364105,5.53190533,180.77,180.73,5.83880421]
[1761852364504,5.53154324,180.79,180.76,5.83880421]
[1761852364731,5.53036168,180.82,180.77,6.55880421]
[1761852365114,5.83880421,180.81,180.73,0.28432314]
[1761852365329,19.35626589,180.82,180.77,5.83880421]
[1761852365745,5.53036168,180.82,180.78,6.55880421]
[1761852366034,5.53036168,180.82,180.79,0.72]
[1761852366404,27.64351653,180.88,180.79,0.72]
[1761852366405,5.52791597,180.9,180.81,5.83880421]
[1761852366711,5.52791597,180.9,180.85,5.83880421]
[1761852366909,19.3477059,180.9,180.85,6.55880421]
[1761852367228,25.18651011,180.9,180.85,0.72]
[1761852367436,5.52791597,180.9,180.86,0.72]
[1761852367730,5.52791597,180.9,180.84,5.83880421]
[1761852367731,11.36672018,180.9,180.84,5.83880421]
[1761852367936,11.36672018,180.9,180.85,5.83880421]
[1761852367937,5.52791597,180.9,180.85,5.83880421]
[1761852368403,5.52759199,180.92,180.86,6.55880421]
[1761852368610,5.52759199,180.92,180.87,5.83880421]
[1761852368805,5.52759199,180.92,180.88,0.72]
[1761852369220,19.3458542,180.92,180.88,0.72]
[1761852369428,5.52669393,180.94,180.89,5.83880421]
[1761852369634,5.52669393,180.94,180.9,5.83880421]
[1761852370114,11.36549814,180.94,180.88,5.83880421]
[1761852370338,11.36549814,180.94,180.88,6.50880421]
[1761852370526,25.18223296,180.94,180.88,6.50880421]
[1761852371220,11.36549814,180.94,180.89,5.83880421]
[1761852371420,5.52669393,180.94,180.89,6.50880421]
[1761852371636,5.72641,180.95,180.91,5.83880421]
[1761852371939,0.2,180.95,180.91,5.83880421]
[1761852372143,0.2,180.95,180.92,0.67]
[1761852372338,5.83880421,180.93,180.86,21.262]
[1761852372510,5.72640051,180.95,180.9,5.83880421]
[1761852372929,5.72640051,180.95,180.91,6.50880421]
[1761852373335,5.72640051,180.95,180.92,0.67]
[1761852374148,5.72640051,180.95,180.92,6.50880421]
[1761852374346,5.72639096,180.95,180.92,5.83880421]
[1761852374521,5.72639096,180.95,180.93,0.67]
[1761852374721,0.2,180.95,180.94,5.83880421]
[1761852374925,0.2,180.95,180.93,0.67]
[1761852375134,0.2,180.95,180.94,5.83880421]
[1761852375519,0.2,180.95,180.94,6.49880421]
[1761852376250,0.2,180.95,180.92,5.83880421]
[1761852376432,5.72648197,180.95,180.92,6.49880421]
[1761852376829,5.72648197,180.95,180.92,0.66]
[1761852377138,5.72648197,180.95,180.89,30.38082769]
[1761852377139,25.38125744,180.95,180.89,36.8796319]
[1761852377642,5.72648197,180.95,180.9,5.83880421]
[1761852377816,0.2,180.95,180.92,5.83880421]
[1761852378019,0.2,180.95,180.93,5.83880421]
[1761852378216,0.2,180.95,180.92,5.83880421]
[1761852378440,0.2,180.95,180.93,0.66]
[1761852378624,0.2,180.95,180.93,6.49880421]
[1761852378828,0.2,180.95,180.93,5.83880421]
[1761852379023,0.2,180.95,180.94,6.49880421]
[1761852381553,0.2,180.95,180.94,16.2876319]
[1761852381755,0.2,180.96,180.95,0.28432314]
[1761852382046,0.2,180.98,180.96,9.78882769]
[1761852382349,0.2,180.98,180.97,15.6276319]
[1761852382648,0.2,180.98,180.96,0.66]
[1761852382836,0.2,180.98,180.96,5.83880421]
[1761852383038,0.2,180.98,180.96,6.49880421]
[1761852383550,0.2,181.0,180.97,9.51904974]
[1761852383753,0.2,181.02,180.99,18.64787743]
[1761852383954,0.2,181.02,181.01,8.85904974]
[1761852384127,0.2,181.02,181.01,9.47904974]
[1761852384335,0.2,181.02,181.01,19.55220057]
[1761852384634,0.7,181.12,181.02,10.07315083]
[1761852384833,0.7,181.1,181.02,19.55220057]
[1761852385032,9.55904974,181.1,181.02,19.55220057]
[1761852385354,9.55904974,181.14,181.05,0.28432314]
[1761852385555,28.18218781,181.13,181.07,8.85904974]
[1761852385731,20.02313807,181.13,181.07,8.85904974]
[1761852386252,28.88218781,181.13,181.05,0.62]
[1761852386451,28.88218781,181.13,181.07,8.85904974]
[1761852386635,20.02313807,181.13,181.07,8.85904974]
[1761852386835,28.88218781,181.13,181.07,8.85904974]
[1761852387149,28.88218781,181.13,181.04,0.28432314]
[1761852387150,8.85904974,181.11,181.04,0.28432314]
[1761852387458,8.85904974,181.09,181.03,8.85904974]
[1761852387659,8.85904974,181.08,181.02,8.85904974]
[1761852387864,8.85904974,181.07,180.99,10.40882769]
[1761852388073,9.55904974,181.07,180.99,9.78882769]
[1761852388362,20.592,181.08,180.98,8.85904974]
[1761852388363,8.85904974,181.04,180.98,8.85904974]
[1761852388564,0.7,181.06,181.0,8.85904974]
[1761852388767,9.55904974,181.07,181.01,8.85904974]
[1761852388925,8.85904974,181.05,180.99,8.85904974]
[1761852389125,20.592,181.08,180.99,8.85904974]
[1761852389126,8.85904974,181.04,180.99,8.85904974]
[1761852389332,20.592,181.0,180.87,50.0]
[1761852389561,8.85904974,180.96,180.91,8.85904974]
[1761852389733,8.85904974,180.96,180.88,0.62]
[1761852389926,8.85904974,180.96,180.91,8.85904974]
[1761852390148,8.85904974,180.96,180.9,8.85904974]
[1761852390341,8.85904974,180.95,180.89,8.85904974]
[1761852390777,20.592,180.97,180.94,8.85904974]
[1761852391054,20.592,181.0,180.95,8.85904974]
[1761852391253,20.592,181.0,180.96,8.85904974]
[1761852391428,5.52516713,180.99,180.96,8.85904974]
[1761852391627,26.11699398,181.0,180.97,8.85904974]
[1761852392150,5.52459753,181.01,180.98,8.85904974]
[1761852392525,5.52459753,181.01,180.94,10.69315083]
[1761852392728,5.52459753,181.01,180.95,0.62]
[1761852392936,5.52459753,181.01,180.98,8.85904974]
[1761852393364,5.52425146,181.02,180.98,8.85904974]
[1761852393555,6.22425146,181.02,180.98,8.85904974]
[1761852394641,5.52425146,181.02,180.98,8.85904974]
[1761852395679,5.5239463,181.03,180.98,8.85904974]
[1761852395849,5.5239463,181.03,180.99,8.85904974]
[1761852396166,20.592,181.05,180.99,8.85904974]
[1761852396167,5.52333609,181.05,181.02,8.85904974]
[1761852396330,20.592,181.04,181.03,8.85904974]
[1761852396530,5.52333609,181.05,181.03,8.85904974]
[1761852396730,5.52303877,181.06,181.03,8.85904974]
[1761852396931,0.7,181.08,181.04,8.85904974]
[1761852397161,20.592,181.07,181.04,8.85904974]
[1761852397956,20.03060862,181.06,180.97,61.7]
[1761852398161,8.85904974,181.05,180.97,0.28432314]
[1761852398344,8.85904974,181.05,180.98,8.85904974]
[1761852398345,9.55904974,181.05,180.98,8.85904974]
[1761852398684,0.7,181.04,180.98,8.85904974]
[1761852398864,20.592,181.02,180.96,61.7]
[1761852399027,20.592,181.02,180.95,8.85904974]
[1761852399233,0.72,181.01,180.95,8.85904974]
[1761852399485,0.72,181.01,180.96,8.85904974]
[1761852399764,5.52425146,181.02,180.97,8.85904974]
[1761852400056,6.24425146,181.02,180.96,8.85904974]
[1761852400261,20.05488011,181.02,180.96,8.85904974]
[1761852400633,19.33488011,181.02,180.96,8.85904974]
[1761852400833,0.72,181.01,180.95,8.85904974]
[1761852401035,0.72,181.01,180.94,0.28432314]
[1761852401236,0.72,181.01,180.95,8.85904974]
[1761852401462,0.72,181.01,180.91,62.32]
[1761852401690,19.34022213,180.97,180.91,8.85904974]
[1761852402131,20.06022213,180.97,180.91,8.85904974]
[1761852402330,20.06022213,180.97,180.9,8.85904974]
[1761852402754,20.06022213,180.97,180.91,8.85904974]
[1761852402960,20.06022213,180.97,180.89,0.62]
[1761852402961,6.24577775,180.97,180.92,8.85904974]
[1761852403286,62.9631913,181.15,180.96,8.85904974]
[1761852403287,0.72,181.04,180.96,8.85904974]
[1761852403432,20.592,181.02,180.98,8.85904974]
[1761852403865,21.312,181.02,180.98,8.85904974]
[1761852404032,0.72,181.01,180.97,8.85904974]
[1761852404234,4.48440623,181.04,180.98,8.85904974]
[1761852404841,1.99999999,181.12,180.91,20.592]
[1761852404842,20.592,181.0,180.91,0.62]
[1761852405038,12.62345597,180.99,180.92,8.85904974]
[1761852405246,3.76440623,180.98,180.92,8.85904974]
[1761852405639,4.48440623,180.98,180.93,8.85904974]
[1761852406044,4.48440623,180.97,180.93,8.85904974]
[1761852406261,5.52608311,180.96,180.93,8.85904974]
[1761852406839,3.78469881,180.95,180.91,0.62]
[1761852407042,3.78469881,180.95,180.93,8.85904974]
[1761852407237,4.50469881,180.95,180.91,8.85904974]
[1761852407453,4.51338863,180.94,180.89,8.85904974]
[1761852407746,3.79338863,180.93,180.89,8.85904974]
[1761852408136,3.79338863,180.93,180.9,8.85904974]
[1761852408479,3.79338863,180.92,180.9,8.85904974]
[1761852408775,5.52704486,180.93,180.9,8.85904974]
[1761852408982,3.79847069,180.92,180.9,8.85904974]
[1761852409141,5.52704486,180.93,180.9,8.85904974]
[1761852409348,3.79851886,180.92,180.9,8.85904974]
[1761852409593,3.79851886,180.91,180.89,8.85904974]
[1761852409788,5.52704486,180.93,180.89,8.85904974]
[1761852410002,3.80482025,180.92,180.89,8.85904974]
[1761852410199,3.80482025,180.91,180.89,8.85904974]
[1761852410377,5.52669393,180.94,180.9,8.85904974]
[1761852410577,3.80934599,180.93,180.9,8.85904974]
[1761852410816,3.80934599,180.92,180.88,0.28432314]
[1761852411086,3.80934599,180.91,180.87,8.85904974]
[1761852411287,3.80934599,180.9,180.88,8.85904974]
[1761852411480,3.80934599,180.89,180.86,8.85904974]
[1761852411682,3.80934599,180.88,180.85,8.85904974]
[1761852411994,3.80934599,180.87,180.84,8.85904974]
[1761852412196,3.80934599,180.86,180.84,8.85904974]
[1761852412371,3.80934599,180.86,180.82,15.93913708]
[1761852412372,6.24791597,180.9,180.85,8.85904974]
[1761852412572,3.81307038,180.89,180.85,8.85904974]
[1761852412890,3.81307038,180.88,180.85,8.85904974]
[1761852413197,3.81307038,180.87,180.83,8.85904974]
[1761852413402,3.81307038,180.86,180.84,8.85904974]
[1761852413613,19.3477059,180.9,180.85,8.85904974]
[1761852413903,5.52791597,180.9,180.85,8.85904974]
[1761852414085,5.52791597,180.9,180.84,0.62]
[1761852414086,6.24791597,180.9,180.84,0.62]
[1761852414288,5.52758153,180.92,180.89,8.85904974]
[1761852414501,6.2463885,180.95,180.9,8.85904974]
[1761852414874,0.72,180.94,180.9,8.85904974]
[1761852415315,6.2463885,180.95,180.9,8.85904974]
[1761852415605,20.06235976,180.95,180.9,8.85904974]
[1761852416105,5.5263885,180.95,180.92,8.85904974]
[1761852416480,0.72,180.95,180.91,8.85904974]
[1761852416815,6.24643584,180.95,180.91,8.85904974]
[1761852417112,6.24643584,180.95,180.9,8.85904974]
[1761852417508,0.72,180.94,180.9,8.85904974]
[1761852418127,0.72,180.96,180.91,8.85904974]
[1761852418507,0.72,180.96,180.9,8.85904974]
[1761852419029,9.57904974,180.96,180.88,8.85904974]
[1761852419323,20.592,180.94,180.88,8.85904974]
[1761852419796,21.312,180.94,180.89,8.85904974]
[1761852420303,6.24699939,180.93,180.86,0.90432314]
[1761852420506,6.24699939,180.93,180.89,8.85904974]
[1761852420710,0.72,180.92,180.83,0.62]
[1761852420902,9.57904974,180.92,180.85,8.85904974]
[1761852421417,0.72,180.91,180.83,0.90432314]
[1761852421719,9.57904974,180.91,180.83,0.90432314]
[1761852421897,8.85904974,180.9,180.8,0.62]
[1761852422096,19.34877549,180.89,180.83,8.85904974]
[1761852422419,20.06877549,180.89,180.83,8.85904974]
[1761852422615,0.72,180.88,180.83,8.85904974]
[1761852423117,0.72,180.88,180.81,16.34943241]
[1761852423118,9.57904974,180.88,180.81,8.85904974]
[1761852423295,29.45104974,180.85,180.78,8.85904974]
[1761852423812,20.592,180.86,180.82,8.85904974]
[1761852424116,26.12142013,180.86,180.82,8.85904974]
[1761852424290,26.84142013,180.86,180.82,8.85904974]
[1761852424715,0.72,180.85,180.8,8.85904974]
[1761852424915,0.72,180.85,180.77,16.77981768]
[1761852424916,0.72,180.85,180.79,8.85904974]
[1761852425493,0.72,180.85,180.8,8.85904974]
[1761852425918,8.85904974,180.84,180.77,15.85003973]
[1761852426290,39.94426653,180.86,180.77,6.99098999]
[1761852426291,28.93424522,180.83,180.77,6.99098999]
[1761852426804,0.72,180.82,180.77,6.99098999]
[1761852427311,9.57904974,180.82,180.77,6.99098999]
[1761852427720,20.592,180.79,180.77,6.99098999]
[1761852428100,0.72,180.78,180.77,6.99098999]
[1761852428303,6.25158535,180.78,180.77,6.99098999]
[1761852429195,15.11063509,180.78,180.77,6.99098999]
[1761852430601,6.25158535,180.78,180.77,6.99098999]
[1761852431319,0.7,180.82,180.77,6.99098999]
[1761852431523,5.53066755,180.81,180.77,15.85003973]
[1761852431721,5.53066755,180.81,180.78,8.85904974]
[1761852432234,5.53066755,180.81,180.77,15.85003973]
[1761852432413,0.7,180.8,180.77,15.85003973]
[1761852432616,6.23120584,180.8,180.77,6.99098999]
[1761852433116,0.7,180.79,180.77,6.99098999]
[1761852433836,19.35863946,180.8,180.77,6.99098999]
[1761852434035,0.7,180.79,180.77,6.99098999]
[1761852434413,5.53065841,180.82,180.77,6.99098999]
[1761852434714,5.53005585,180.83,180.79,8.85904974]
[1761852435112,6.23005585,180.83,180.79,8.85904974]
[1761852435305,0.71,180.82,180.77,6.99098999]
[1761852435500,0.71,180.82,180.78,8.85904974]
[1761852435723,0.71,180.82,180.77,15.85003973]
[1761852435902,9.56904974,180.82,180.77,6.99098999]
[1761852436105,0.71,180.82,180.77,6.99098999]
[1761852436402,5.53005585,180.83,180.78,8.85904974]
[1761852436605,5.52975005,180.84,180.79,8.85904974]
[1761852436914,6.23975005,180.84,180.79,8.85904974]
[1761852437114,20.592,180.81,180.77,6.99098999]
[1761852437314,20.592,180.81,180.77,15.85003973]
[1761852437526,21.302,180.81,180.77,15.85003973]
[1761852437833,21.302,180.81,180.77,6.99098999]
[1761852438604,35.12637513,180.84,180.79,8.85904974]
[1761852438823,20.06519548,180.83,180.78,8.85904974]
[1761852439215,0.71,180.82,180.77,15.85003973]
[1761852439516,0.71,180.82,180.78,8.85904974]
[1761852440633,5.53056627,180.82,180.78,8.85904974]
[1761852440868,5.53009873,180.83,180.8,8.85904974]
[1761852441431,6.24009873,180.83,180.8,8.85904974]
[1761852442316,0.71,180.82,180.79,8.85904974]
[1761852443021,5.53009873,180.83,180.79,8.85904974]
[1761852443219,4.54459949,180.95,180.77,12.52285968]
[1761852443220,14.53213658,180.87,180.81,8.85904974]
[1761852443453,5.52913856,180.86,180.82,8.85904974]
[1761852443621,6.23913856,180.86,180.82,8.85904974]
[1761852443935,0.71,180.85,180.82,8.85904974]
[1761852444143,6.23913856,180.86,180.82,8.85904974]
[1761852444454,0.71,180.85,180.82,8.85904974]
[1761852444611,0.71,180.85,180.81,8.85904974]
[1761852444817,0.71,180.85,180.8,8.85904974]
[1761852445445,0.71,180.85,180.8,5.84055223]
[1761852445763,0.71,180.85,180.77,6.99098999]
[1761852445764,6.55055223,180.85,180.77,6.99098999]
[1761852446055,20.592,180.83,180.77,12.83154222]
[1761852446244,19.35626589,180.82,180.77,6.99098999]
[1761852446446,20.06380976,180.93,180.81,5.84055223]
[1761852446447,0.71,180.87,180.81,5.84055223]
[1761852446627,0.71,180.86,180.81,5.84055223]
[1761852446820,0.71,180.86,180.82,5.84055223]
[1761852447068,2.89086333,180.89,180.84,5.84055223]
[1761852447299,0.71,180.93,180.88,5.84055223]
[1761852447586,0.71,180.93,180.89,5.84055223]
[1761852447587,21.302,180.93,180.89,5.84055223]
[1761852447891,20.592,180.93,180.9,5.84055223]
[1761852448191,0.71,180.95,180.9,5.84055223]
[1761852448377,5.52669393,180.94,180.9,5.84055223]
[1761852448574,0.71,180.95,180.92,5.84055223]
[1761852448575,5.52646488,180.95,180.92,5.84055223]
[1761852449193,6.23646488,180.95,180.92,5.84055223]
[1761852449591,0.71,180.94,180.86,0.62]
[1761852449791,20.592,180.92,180.87,5.84055223]
[1761852450163,0.71,180.91,180.87,5.84055223]
[1761852450362,0.71,180.91,180.86,5.84055223]
[1761852450589,6.23765643,180.91,180.87,5.84055223]
[1761852451201,5.52765643,180.91,180.87,5.84055223]
[1761852451396,32.66979426,180.93,180.87,5.84055223]
[1761852451604,26.82924203,180.93,180.88,5.84055223]
[1761852451801,26.82924203,180.93,180.85,0.62]
[1761852451802,26.82924203,180.93,180.89,5.84055223]
[1761852452300,25.89039439,180.98,180.92,5.84055223]
[1761852452612,20.592,180.95,180.92,5.84055223]
[1761852452792,5.52272601,181.07,180.95,9.78882769]
[1761852452991,6.55055223,181.05,180.93,0.62]
[1761852453200,5.84055223,181.03,180.97,5.84055223]